[Event "*** SCC Grand Prix: Titled Tuesday Blitz"]
[Site "Chess.com"]
[Date "2020.07.14"]
[Round "1"]
[White "Nafania1"]
[Black "EvgenyT"]
[Result "0-1"]
[WhiteElo "2433"]
[BlackElo "2914"]
[TimeControl "180+1"]
[EndTime "10:08:15 PDT"]
[Termination "EvgenyT won by resignation"]

1. e4 {[%clk 0:03:00.9]} 1... c6 {[%clk 0:02:57.9]} 2. d4 {[%clk 0:02:59.8]}
2... d5 {[%clk 0:02:57.6]} 3. exd5 {[%clk 0:03:00.1]} 3... cxd5 {[%clk
0:02:57.5]} 4. Bd3 {[%clk 0:03:00.1]} 4... Nc6 {[%clk 0:02:56.8]} 5. c3 {[%clk
0:03:00.4]} 5... g6 {[%clk 0:02:56.8]} 6. h3 {[%clk 0:02:59.1]} 6... Bf5 {[%clk
0:02:55.2]} 7. Be2 {[%clk 0:02:55.2]} 7... Nf6 {[%clk 0:02:53.7]} 8. Nf3 {[%clk
0:02:52.9]} 8... e6 {[%clk 0:02:50.8]} 9. Bf4 {[%clk 0:02:51.5]} 9... Bd6 {[%clk
0:02:50]} 10. Bxd6 {[%clk 0:02:51.2]} 10... Qxd6 {[%clk 0:02:49.9]} 11. O-O
{[%clk 0:02:50.3]} 11... O-O-O {[%clk 0:02:34.9]} 12. Na3 {[%clk 0:02:48.7]}
12... Kb8 {[%clk 0:02:31.5]} 13. Bb5 {[%clk 0:02:34.4]} 13... g5 {[%clk
0:02:04.8]} 14. Bxc6 {[%clk 0:02:26.4]} 14... Qxc6 {[%clk 0:02:01.2]} 15. Ne5
{[%clk 0:02:24.9]} 15... Qe8 {[%clk 0:02:01]} 16. Qb3 {[%clk 0:01:53]} 16... Ne4
{[%clk 0:01:51.9]} 17. Qb5 {[%clk 0:01:44.8]} 17... f6 {[%clk 0:01:37.4]} 18.
Qxe8 {[%clk 0:01:44]} 18... Rhxe8 {[%clk 0:01:36.8]} 19. Nf3 {[%clk 0:01:42.7]}
19... g4 {[%clk 0:01:30]} 20. hxg4 {[%clk 0:01:42.2]} 20... Bxg4 {[%clk
0:01:30]} 21. Nh2 {[%clk 0:01:40.2]} 21... Bf5 {[%clk 0:01:24]} 22. Rad1 {[%clk
0:01:20.4]} 22... Rg8 {[%clk 0:01:21.7]} 23. Kh1 {[%clk 0:00:45.8]} 23... Rg7
{[%clk 0:01:13]} 24. Nb1 {[%clk 0:00:34.4]} 24... Rdg8 {[%clk 0:01:04.9]} 25. g3
{[%clk 0:00:17.7]} 25... Bh3 {[%clk 0:00:54.7]} 26. Nd2 {[%clk 0:00:12.7]} 26...
Nxd2 {[%clk 0:00:44.9]} 27. Rxd2 {[%clk 0:00:12]} 27... Bxf1 {[%clk 0:00:45.4]}
28. Nxf1 {[%clk 0:00:12.3]} 28... Kc7 {[%clk 0:00:44]} 29. Re2 {[%clk 0:00:12]}
29... Kd6 {[%clk 0:00:43.8]} 30. Ne3 {[%clk 0:00:11.7]} 30... h5 {[%clk
0:00:42.7]} 31. Kh2 {[%clk 0:00:11.2]} 31... h4 {[%clk 0:00:30.5]} 32. g4 {[%clk
0:00:10.9]} 32... Rxg4 {[%clk 0:00:25]} 33. Nxg4 {[%clk 0:00:10.7]} 33... Rxg4
{[%clk 0:00:25.6]} 34. Re3 {[%clk 0:00:10.7]} 34... e5 {[%clk 0:00:24.3]} 35.
Rf3 {[%clk 0:00:09.8]} 35... Ke6 {[%clk 0:00:22.6]} 36. dxe5 {[%clk 0:00:09.9]}
36... fxe5 {[%clk 0:00:22.7]} 37. Rf8 {[%clk 0:00:09.4]} 37... b5 {[%clk
0:00:15.4]} 38. Kh3 {[%clk 0:00:08.7]} 38... Ra4 {[%clk 0:00:14.7]} 39. a3
{[%clk 0:00:08.4]} 39... a6 {[%clk 0:00:15.1]} 40. Rh8 {[%clk 0:00:07.6]} 40...
Kf5 {[%clk 0:00:14.2]} 41. Rh5+ {[%clk 0:00:05.4]} 41... Kf4 {[%clk 0:00:14.2]}
42. Rxh4+ {[%clk 0:00:05.8]} 42... Kf3 {[%clk 0:00:14.3]} 43. Rh5 {[%clk
0:00:06.2]} 43... Kxf2 {[%clk 0:00:06.3]} 44. Rf5+ {[%clk 0:00:05.7]} 44... Ke3
{[%clk 0:00:05.7]} 45. Rxe5+ {[%clk 0:00:06]} 45... Kd3 {[%clk 0:00:06.3]} 46.
Rxd5+ {[%clk 0:00:06.1]} 46... Kc2 {[%clk 0:00:06.9]} 47. Rd4 {[%clk 0:00:05.1]}
47... Ra5 {[%clk 0:00:05.8]} 48. Rb4 {[%clk 0:00:05.3]} 48... Kd3 {[%clk
0:00:05.1]} 49. Kg3 {[%clk 0:00:05.5]} 49... Ke3 {[%clk 0:00:04.5]} 50. Kg4
{[%clk 0:00:05.8]} 50... Kd3 {[%clk 0:00:04.6]} 51. Kf5 {[%clk 0:00:06.2]} 51...
Kc2 {[%clk 0:00:04.9]} 52. Ke5 {[%clk 0:00:06.7]} 52... Ra4 {[%clk 0:00:05.4]}
53. Kf5 {[%clk 0:00:06.9]} 53... Rxb4 {[%clk 0:00:05.1]} 54. axb4 {[%clk
0:00:07]} 54... Kxb2 {[%clk 0:00:05.5]} 55. Ke4 {[%clk 0:00:07.4]} 55... Kxc3
{[%clk 0:00:05.8]} 56. Kd5 {[%clk 0:00:07.3]} 56... Kxb4 {[%clk 0:00:06.1]} 57.
Kc6 {[%clk 0:00:07.7]} 57... a5 {[%clk 0:00:07]} 0-1

[Event "*** SCC Grand Prix: Titled Tuesday Blitz"]
[Site "Chess.com"]
[Date "2020.07.14"]
[Round "1"]
[White "arminmusovic"]
[Black "poppy73"]
[Result "1-0"]
[WhiteElo "2556"]
[BlackElo "2226"]
[TimeControl "180+1"]
[EndTime "10:08:18 PDT"]
[Termination "arminmusovic won by checkmate"]

1. a3 {[%clk 0:02:59.3]} 1... d5 {[%clk 0:02:57.6]} 2. Nc3 {[%clk 0:03:00.2]}
2... e5 {[%clk 0:02:53.8]} 3. d4 {[%clk 0:03:00.1]} 3... e4 {[%clk 0:02:49.3]}
4. Bf4 {[%clk 0:02:59.9]} 4... Nf6 {[%clk 0:02:45]} 5. Be5 {[%clk 0:02:53.1]}
5... Nbd7 {[%clk 0:02:40.5]} 6. Nb5 {[%clk 0:02:53.5]} 6... Nxe5 {[%clk
0:02:33.5]} 7. dxe5 {[%clk 0:02:53.3]} 7... Ng4 {[%clk 0:02:30.6]} 8. Qxd5
{[%clk 0:02:49.2]} 8... Qxd5 {[%clk 0:02:13.7]} 9. Nxc7+ {[%clk 0:02:48.8]} 9...
Kd7 {[%clk 0:02:10.7]} 10. Nxd5 {[%clk 0:02:49.7]} 10... Nxe5 {[%clk 0:02:11.2]}
11. e3 {[%clk 0:02:46.2]} 11... Kc6 {[%clk 0:02:06.9]} 12. Nc3 {[%clk 0:02:37]}
12... Bf5 {[%clk 0:02:03.7]} 13. Nge2 {[%clk 0:02:33]} 13... Bg6 {[%clk
0:02:02.9]} 14. Nf4 {[%clk 0:02:26.7]} 14... f5 {[%clk 0:01:56.3]} 15. Ne6
{[%clk 0:02:21]} 15... a6 {[%clk 0:01:50.7]} 16. h3 {[%clk 0:02:14.1]} 16... Bf7
{[%clk 0:01:47.6]} 17. Nd4+ {[%clk 0:02:13.8]} 17... Kc7 {[%clk 0:01:46]} 18.
Nxf5 {[%clk 0:02:13.8]} 18... Bg6 {[%clk 0:01:39.6]} 19. Ng3 {[%clk 0:02:12.3]}
19... Re8 {[%clk 0:01:36.4]} 20. O-O-O {[%clk 0:02:07]} 20... b5 {[%clk
0:01:14.8]} 21. Ngxe4 {[%clk 0:01:57.5]} 21... Nc4 {[%clk 0:01:08.1]} 22. Bxc4
{[%clk 0:01:53.9]} 22... bxc4 {[%clk 0:01:07]} 23. Ng3 {[%clk 0:01:43.3]} 23...
Bd6 {[%clk 0:01:03.7]} 24. Nge2 {[%clk 0:01:33.6]} 24... Rhf8 {[%clk 0:01:02.3]}
25. Nf4 {[%clk 0:01:30.4]} 25... Be4 {[%clk 0:00:47.7]} 26. Nxe4 {[%clk
0:01:28.1]} 26... Rxe4 {[%clk 0:00:47.5]} 27. f3 {[%clk 0:01:18.9]} 27... Bxf4
{[%clk 0:00:30.8]} 28. fxe4 {[%clk 0:01:18.3]} 28... Bxe3+ {[%clk 0:00:31.7]}
29. Kb1 {[%clk 0:01:18.9]} 29... Re8 {[%clk 0:00:24.9]} 30. Rhe1 {[%clk
0:01:15.2]} 30... Bf4 {[%clk 0:00:18.1]} 31. Rd5 {[%clk 0:01:14.6]} 31... Be5
{[%clk 0:00:17.6]} 32. Rc5+ {[%clk 0:01:04]} 32... Kd6 {[%clk 0:00:17.4]} 33.
Rxc4 {[%clk 0:01:04.9]} 33... Rb8 {[%clk 0:00:16.7]} 34. Rd1+ {[%clk 0:01:04.1]}
34... Ke7 {[%clk 0:00:16.7]} 35. Rb4 {[%clk 0:01:01.9]} 35... Rf8 {[%clk
0:00:13.7]} 36. Rb7+ {[%clk 0:01:01.2]} 36... Ke6 {[%clk 0:00:12.9]} 37. Rb6+
{[%clk 0:01:01.5]} 37... Ke7 {[%clk 0:00:13.3]} 38. Rxa6 {[%clk 0:01:01.3]}
38... Rb8 {[%clk 0:00:13.1]} 39. b4 {[%clk 0:01:00.2]} 39... Rc8 {[%clk
0:00:11.9]} 40. Ra7+ {[%clk 0:00:58.8]} 40... Ke6 {[%clk 0:00:11.5]} 41. Ra6+
{[%clk 0:00:58.6]} 41... Ke7 {[%clk 0:00:11.1]} 42. Ra5 {[%clk 0:00:59]} 42...
Ke6 {[%clk 0:00:10.7]} 43. Rc5 {[%clk 0:00:58.4]} 43... Rf8 {[%clk 0:00:09]} 44.
a4 {[%clk 0:00:57.4]} 44... Rb8 {[%clk 0:00:08.1]} 45. b5 {[%clk 0:00:56.2]}
45... Ra8 {[%clk 0:00:07.8]} 46. Rc6+ {[%clk 0:00:52.9]} 46... Ke7 {[%clk
0:00:07]} 47. Rd5 {[%clk 0:00:53.8]} 47... Bf6 {[%clk 0:00:03.5]} 48. Rc7+
{[%clk 0:00:48.1]} 48... Ke6 {[%clk 0:00:03.4]} 49. Rc6+ {[%clk 0:00:48.5]}
49... Ke7 {[%clk 0:00:03.6]} 50. Ra6 {[%clk 0:00:49.4]} 50... Rc8 {[%clk
0:00:02.8]} 51. e5 {[%clk 0:00:48.9]} 51... Bg5 {[%clk 0:00:02.4]} 52. Rdd6
{[%clk 0:00:48.4]} 52... Rf8 {[%clk 0:00:01.4]} 53. Ra7+ {[%clk 0:00:48.5]}
53... Ke8 {[%clk 0:00:01.2]} 54. Ra8+ {[%clk 0:00:49]} 54... Kf7 {[%clk
0:00:01.7]} 55. Rxf8+ {[%clk 0:00:49.9]} 55... Kxf8 {[%clk 0:00:02.2]} 56. a5
{[%clk 0:00:50.5]} 56... Be7 {[%clk 0:00:02.3]} 57. a6 {[%clk 0:00:50.9]} 57...
Bxd6 {[%clk 0:00:02.2]} 58. exd6 {[%clk 0:00:51.8]} 58... Ke8 {[%clk 0:00:02.8]}
59. c4 {[%clk 0:00:51.8]} 59... Kd7 {[%clk 0:00:03.7]} 60. c5 {[%clk 0:00:52.7]}
60... Kc8 {[%clk 0:00:03.5]} 61. b6 {[%clk 0:00:53]} 61... Kb8 {[%clk
0:00:03.9]} 62. c6 {[%clk 0:00:52.9]} 62... Kc8 {[%clk 0:00:04.2]} 63. Kc2
{[%clk 0:00:53.2]} 63... Kb8 {[%clk 0:00:04.4]} 64. Kd3 {[%clk 0:00:53.9]} 64...
Kc8 {[%clk 0:00:04.7]} 65. Ke4 {[%clk 0:00:54.6]} 65... Kb8 {[%clk 0:00:05.6]}
66. Kd5 {[%clk 0:00:55.2]} 66... Kc8 {[%clk 0:00:06.5]} 67. Ke6 {[%clk
0:00:55.8]} 67... Kb8 {[%clk 0:00:07.4]} 68. Kf7 {[%clk 0:00:56.5]} 68... Kc8
{[%clk 0:00:07.9]} 69. Kxg7 {[%clk 0:00:57.1]} 69... Kb8 {[%clk 0:00:08.8]} 70.
Kxh7 {[%clk 0:00:57.7]} 70... Kc8 {[%clk 0:00:09.7]} 71. Kg7 {[%clk 0:00:58.3]}
71... Kb8 {[%clk 0:00:10.6]} 72. Kf7 {[%clk 0:00:58.8]} 72... Kc8 {[%clk
0:00:11.5]} 73. g4 {[%clk 0:00:59.4]} 73... Kb8 {[%clk 0:00:12.4]} 74. g5 {[%clk
0:01:00.3]} 74... Kc8 {[%clk 0:00:13.3]} 75. h4 {[%clk 0:01:01.2]} 75... Kb8
{[%clk 0:00:14.2]} 76. h5 {[%clk 0:01:02.1]} 76... Kc8 {[%clk 0:00:15.1]} 77. h6
{[%clk 0:01:03]} 77... Kb8 {[%clk 0:00:16]} 78. g6 {[%clk 0:01:03.9]} 78... Kc8
{[%clk 0:00:16.9]} 79. g7 {[%clk 0:01:04.8]} 79... Kb8 {[%clk 0:00:17.8]} 80. h7
{[%clk 0:01:05.7]} 80... Kc8 {[%clk 0:00:18.7]} 81. Ke6 {[%clk 0:01:06.6]} 81...
Kb8 {[%clk 0:00:19.6]} 82. g8=Q# {[%clk 0:01:07.5]} 1-0

[Event "*** SCC Grand Prix: Titled Tuesday Blitz"]
[Site "Chess.com"]
[Date "2020.07.14"]
[Round "1"]
[White "Bossche-CM"]
[Black "ChessArchitect64"]
[Result "1-0"]
[WhiteElo "2458"]
[BlackElo "1867"]
[TimeControl "180+1"]
[EndTime "10:08:18 PDT"]
[Termination "Bossche-CM won by resignation"]

1. e4 {[%clk 0:03:00.9]} 1... c5 {[%clk 0:02:56.5]} 2. b3 {[%clk 0:03:00.3]}
2... Nc6 {[%clk 0:02:54]} 3. Bb2 {[%clk 0:03:00.3]} 3... d6 {[%clk 0:02:49]} 4.
Nc3 {[%clk 0:02:56.4]} 4... Nf6 {[%clk 0:02:48]} 5. Nf3 {[%clk 0:02:55.4]} 5...
g6 {[%clk 0:02:47.3]} 6. Nd5 {[%clk 0:02:50.2]} 6... Bg7 {[%clk 0:02:44.1]} 7.
Nxf6+ {[%clk 0:02:50.2]} 7... Bxf6 {[%clk 0:02:43.8]} 8. Bxf6 {[%clk 0:02:50.6]}
8... exf6 {[%clk 0:02:43.8]} 9. Bc4 {[%clk 0:02:51.2]} 9... Be6 {[%clk
0:02:37.2]} 10. Bd5 {[%clk 0:02:49.3]} 10... O-O {[%clk 0:02:32.8]} 11. O-O
{[%clk 0:02:48.3]} 11... Bxd5 {[%clk 0:02:31.7]} 12. exd5 {[%clk 0:02:47.8]}
12... Ne5 {[%clk 0:02:24.8]} 13. c4 {[%clk 0:02:42.6]} 13... Re8 {[%clk
0:02:11]} 14. Re1 {[%clk 0:02:38.8]} 14... Nxf3+ {[%clk 0:02:07.2]} 15. Qxf3
{[%clk 0:02:39.7]} 15... f5 {[%clk 0:02:07.2]} 16. Qc3 {[%clk 0:02:24.1]} 16...
a6 {[%clk 0:01:45.9]} 17. Kf1 {[%clk 0:02:16.5]} 17... Qh4 {[%clk 0:01:38.5]}
18. h3 {[%clk 0:02:13.6]} 18... b5 {[%clk 0:01:29.5]} 19. Re3 {[%clk 0:01:52]}
19... Rxe3 {[%clk 0:01:21.6]} 20. dxe3 {[%clk 0:01:45.3]} 20... b4 {[%clk
0:01:19]} 21. Qb2 {[%clk 0:01:42.2]} 21... a5 {[%clk 0:01:18.6]} 22. a3 {[%clk
0:01:38.6]} 22... Rb8 {[%clk 0:01:11.7]} 23. axb4 {[%clk 0:01:38.3]} 23... axb4
{[%clk 0:01:11.4]} 24. Ra6 {[%clk 0:01:33.2]} 24... Qe7 {[%clk 0:01:07.1]} 25.
Qa1 {[%clk 0:01:32.9]} 25... Re8 {[%clk 0:01:05.4]} 26. Kg1 {[%clk 0:01:26.6]}
26... h5 {[%clk 0:01:01.9]} 27. Ra7 {[%clk 0:01:23]} 27... Qg5 {[%clk 0:00:48]}
28. Rd7 {[%clk 0:01:15.2]} 28... f4 {[%clk 0:00:47.9]} 29. exf4 {[%clk
0:01:11.8]} 29... Qxf4 {[%clk 0:00:47.6]} 30. g3 {[%clk 0:00:57.5]} 30... Qf5
{[%clk 0:00:42.3]} 31. Rxd6 {[%clk 0:00:53.9]} 31... Qxh3 {[%clk 0:00:40.2]} 32.
Ra6 {[%clk 0:00:34.2]} 32... h4 {[%clk 0:00:39]} 33. Ra8 {[%clk 0:00:31.8]}
33... Rxa8 {[%clk 0:00:35.5]} 34. Qxa8+ {[%clk 0:00:32.7]} 34... Kg7 {[%clk
0:00:34.5]} 35. Qb8 {[%clk 0:00:32.9]} 35... Qf5 {[%clk 0:00:25.6]} 36. Qf4
{[%clk 0:00:08.4]} 36... Qb1+ {[%clk 0:00:24]} 37. Kg2 {[%clk 0:00:08.8]} 37...
hxg3 {[%clk 0:00:23.1]} 38. Qxg3 {[%clk 0:00:07.7]} 38... Qe4+ {[%clk
0:00:21.6]} 39. Qf3 {[%clk 0:00:08]} 39... Qc2 {[%clk 0:00:19.6]} 40. Qe3 {[%clk
0:00:08]} 40... Qf5 {[%clk 0:00:18.7]} 41. Qxc5 {[%clk 0:00:07.7]} 41... Qg4+
{[%clk 0:00:17.8]} 42. Kf1 {[%clk 0:00:08.1]} 42... Qd1+ {[%clk 0:00:17.7]} 43.
Kg2 {[%clk 0:00:08.6]} 43... Qg4+ {[%clk 0:00:17.7]} 44. Kh2 {[%clk 0:00:09.2]}
44... Qh5+ {[%clk 0:00:16.7]} 45. Kg3 {[%clk 0:00:09]} 45... Qg5+ {[%clk
0:00:16.6]} 46. Kf3 {[%clk 0:00:09.5]} 46... Qf5+ {[%clk 0:00:16.6]} 47. Ke2
{[%clk 0:00:09.4]} 47... Qc2+ {[%clk 0:00:16.4]} 48. Kf3 {[%clk 0:00:09.8]}
48... Qxb3+ {[%clk 0:00:16.6]} 49. Qe3 {[%clk 0:00:09.5]} 49... Qxc4 {[%clk
0:00:15.7]} 50. Qe5+ {[%clk 0:00:10]} 50... Kg8 {[%clk 0:00:14.6]} 51. d6 {[%clk
0:00:09.6]} 51... Qc6+ {[%clk 0:00:12.2]} 52. Kg3 {[%clk 0:00:08.2]} 52... b3
{[%clk 0:00:11.8]} 53. f4 {[%clk 0:00:07.3]} 53... Qd7 {[%clk 0:00:08.7]} 54.
Qe7 {[%clk 0:00:06.1]} 54... Qf5 {[%clk 0:00:06.6]} 55. d7 {[%clk 0:00:05.8]}
55... Qd3+ {[%clk 0:00:06.3]} 56. Kh4 {[%clk 0:00:06.1]} 56... g5+ {[%clk
0:00:03.7]} 57. Qxg5+ {[%clk 0:00:04.5]} 57... Kh7 {[%clk 0:00:03.6]} 58. d8=Q
{[%clk 0:00:04.6]} 58... Qxd8 {[%clk 0:00:03.2]} 59. Qxd8 {[%clk 0:00:05.5]} 1-0

[Event "*** SCC Grand Prix: Titled Tuesday Blitz"]
[Site "Chess.com"]
[Date "2020.07.14"]
[Round "1"]
[White "AniJak"]
[Black "Chernobay_Artem"]
[Result "1-0"]
[WhiteElo "2331"]
[BlackElo "2616"]
[TimeControl "180+1"]
[EndTime "10:08:19 PDT"]
[Termination "AniJak won on time"]

1. e4 {[%clk 0:03:00.9]} 1... c5 {[%clk 0:02:58.7]} 2. Nc3 {[%clk 0:03:00]} 2...
d6 {[%clk 0:02:58.4]} 3. g3 {[%clk 0:02:59.7]} 3... Nc6 {[%clk 0:02:56.8]} 4.
Bg2 {[%clk 0:02:59.5]} 4... g6 {[%clk 0:02:57.3]} 5. d3 {[%clk 0:02:59.4]} 5...
Bg7 {[%clk 0:02:57.8]} 6. Nh3 {[%clk 0:02:58.2]} 6... h5 {[%clk 0:02:54.7]} 7.
Be3 {[%clk 0:02:51.7]} 7... Nd4 {[%clk 0:02:51]} 8. f3 {[%clk 0:02:41.2]} 8...
Qa5 {[%clk 0:02:44.2]} 9. O-O {[%clk 0:02:35.5]} 9... Nf6 {[%clk 0:02:40.9]} 10.
Ng5 {[%clk 0:02:25.6]} 10... h4 {[%clk 0:02:26.7]} 11. g4 {[%clk 0:02:25.5]}
11... h3 {[%clk 0:01:52.3]} 12. Bh1 {[%clk 0:02:23.2]} 12... Bd7 {[%clk
0:01:48.6]} 13. a3 {[%clk 0:02:15.4]} 13... Ne6 {[%clk 0:01:30.3]} 14. Nxe6
{[%clk 0:02:12.9]} 14... Bxe6 {[%clk 0:01:27.3]} 15. Qd2 {[%clk 0:01:59.1]}
15... Rc8 {[%clk 0:01:19.6]} 16. Ne2 {[%clk 0:01:53.9]} 16... Qxd2 {[%clk
0:01:15.6]} 17. Bxd2 {[%clk 0:01:54.8]} 17... Nd7 {[%clk 0:01:15.5]} 18. Bc3
{[%clk 0:01:53.4]} 18... Ne5 {[%clk 0:01:15]} 19. Nf4 {[%clk 0:01:48.4]} 19...
Bd7 {[%clk 0:01:07.5]} 20. Kf2 {[%clk 0:01:44.1]} 20... b5 {[%clk 0:01:03.4]}
21. Kg3 {[%clk 0:01:42]} 21... Bc6 {[%clk 0:00:55]} 22. Nxh3 {[%clk 0:01:35.1]}
22... Bf6 {[%clk 0:00:39]} 23. g5 {[%clk 0:01:30.9]} 23... Bd7 {[%clk
0:00:28.6]} 24. gxf6 {[%clk 0:01:21.2]} 24... Rxh3+ {[%clk 0:00:26.3]} 25. Kg2
{[%clk 0:01:19.3]} 25... exf6 {[%clk 0:00:25.7]} 26. f4 {[%clk 0:01:16.5]} 26...
Nc6 {[%clk 0:00:20.1]} 27. Bxf6 {[%clk 0:01:08.9]} 27... Nd4 {[%clk 0:00:20.3]}
28. Bxd4 {[%clk 0:01:07.3]} 28... cxd4 {[%clk 0:00:20.5]} 29. Rf2 {[%clk
0:01:06.7]} 29... Rc5 {[%clk 0:00:18.9]} 30. Kg1 {[%clk 0:01:05.9]} 30... Rh4
{[%clk 0:00:17.7]} 31. Re1 {[%clk 0:00:49.2]} 31... g5 {[%clk 0:00:16.9]} 32. f5
{[%clk 0:00:47.6]} 32... f6 {[%clk 0:00:15.2]} 33. Bf3 {[%clk 0:00:43.1]} 33...
Ke7 {[%clk 0:00:15.3]} 34. Rg2 {[%clk 0:00:40.8]} 34... Rh8 {[%clk 0:00:15.2]}
35. Bd1 {[%clk 0:00:32.1]} 35... a5 {[%clk 0:00:14.9]} 36. Rg4 {[%clk
0:00:24.1]} 36... b4 {[%clk 0:00:13.4]} 37. axb4 {[%clk 0:00:22.7]} 37... axb4
{[%clk 0:00:13.4]} 38. Rg2 {[%clk 0:00:17.9]} 38... Ra8 {[%clk 0:00:12.7]} 39.
h4 {[%clk 0:00:16.1]} 39... Rg8 {[%clk 0:00:08.2]} 40. hxg5 {[%clk 0:00:15.7]}
40... Rxg5 {[%clk 0:00:08.3]} 41. Rxg5 {[%clk 0:00:15.7]} 41... fxg5 {[%clk
0:00:09.2]} 42. Kf2 {[%clk 0:00:16.2]} 42... Kf6 {[%clk 0:00:09.4]} 43. Kg3
{[%clk 0:00:16.4]} 43... Ra5 {[%clk 0:00:08.1]} 44. Rh1 {[%clk 0:00:16.3]} 44...
Ra1 {[%clk 0:00:06.7]} 45. Rh6+ {[%clk 0:00:12.4]} 45... Ke5 {[%clk 0:00:06.1]}
46. Rh1 {[%clk 0:00:10.5]} 46... Ba4 {[%clk 0:00:03.6]} 47. b3 {[%clk
0:00:10.6]} 47... Bd7 {[%clk 0:00:03.7]} 48. Kf2 {[%clk 0:00:10.9]} 48... g4
{[%clk 0:00:02.6]} 49. Rg1 {[%clk 0:00:09.4]} 49... Rc1 {[%clk 0:00:02.2]} 50.
Ke2 {[%clk 0:00:07.6]} 50... Kf4 {[%clk 0:00:01.7]} 51. Rf1+ {[%clk 0:00:05.9]}
51... Kg3 {[%clk 0:00:01.5]} 52. Rg1+ {[%clk 0:00:06]} 52... Kh3 {[%clk
0:00:02]} 53. Kf2 {[%clk 0:00:06]} 53... Rxd1 {[%clk 0:00:02.1]} 54. Rxd1 {[%clk
0:00:05.5]} 54... Kh2 {[%clk 0:00:01.7]} 55. Rg1 {[%clk 0:00:04.8]} 1-0

[Event "*** SCC Grand Prix: Titled Tuesday Blitz"]
[Site "Chess.com"]
[Date "2020.07.14"]
[Round "1"]
[White "Miss_JJ20"]
[Black "GjakanTati"]
[Result "0-1"]
[WhiteElo "2247"]
[BlackElo "2573"]
[TimeControl "180+1"]
[EndTime "10:08:19 PDT"]
[Termination "GjakanTati won by resignation"]

1. d4 {[%clk 0:02:57.1]} 1... Nf6 {[%clk 0:02:57.5]} 2. c4 {[%clk 0:02:56.7]}
2... g6 {[%clk 0:02:57.1]} 3. Nf3 {[%clk 0:02:56.9]} 3... Bg7 {[%clk 0:02:58]}
4. g3 {[%clk 0:02:56.9]} 4... O-O {[%clk 0:02:56.9]} 5. Bg2 {[%clk 0:02:57.1]}
5... d6 {[%clk 0:02:50.1]} 6. O-O {[%clk 0:02:56.5]} 6... Ne4 {[%clk 0:02:50.2]}
7. Nbd2 {[%clk 0:02:49]} 7... Nxd2 {[%clk 0:02:32.3]} 8. Bxd2 {[%clk 0:02:47.1]}
8... e5 {[%clk 0:02:31.1]} 9. Bc3 {[%clk 0:02:42.9]} 9... e4 {[%clk 0:02:29]}
10. Nd2 {[%clk 0:02:36.4]} 10... f5 {[%clk 0:02:25.4]} 11. e3 {[%clk 0:02:36.2]}
11... Nd7 {[%clk 0:02:20.8]} 12. Rc1 {[%clk 0:02:28.7]} 12... c6 {[%clk
0:02:15.6]} 13. Qb3 {[%clk 0:01:51.9]} 13... Kh8 {[%clk 0:02:06.2]} 14. Bb4
{[%clk 0:01:46.7]} 14... c5 {[%clk 0:01:59.2]} 15. Bc3 {[%clk 0:01:45.3]} 15...
b6 {[%clk 0:01:49.4]} 16. Rfd1 {[%clk 0:01:42.7]} 16... Bb7 {[%clk 0:01:46]} 17.
Qa4 {[%clk 0:01:25]} 17... Qe7 {[%clk 0:01:43.2]} 18. b4 {[%clk 0:01:21.4]}
18... cxd4 {[%clk 0:01:41.5]} 19. Bxd4 {[%clk 0:01:10.6]} 19... Ne5 {[%clk
0:01:38.7]} 20. Bxe5 {[%clk 0:00:55.2]} 20... Bxe5 {[%clk 0:01:35.9]} 21. Nb3
{[%clk 0:00:55.4]} 21... Rfc8 {[%clk 0:01:32]} 22. Nd4 {[%clk 0:00:55.1]} 22...
Qf7 {[%clk 0:01:30.2]} 23. Qb3 {[%clk 0:00:54.5]} 23... Ba6 {[%clk 0:01:27.8]}
24. b5 {[%clk 0:00:53.7]} 24... Bb7 {[%clk 0:01:27.6]} 25. a4 {[%clk 0:00:53.7]}
25... Rc5 {[%clk 0:01:26.1]} 26. Bf1 {[%clk 0:00:51.6]} 26... Rac8 {[%clk
0:01:24]} 27. Rd2 {[%clk 0:00:51.3]} 27... Qf6 {[%clk 0:01:16.5]} 28. Rcd1
{[%clk 0:00:51.2]} 28... h5 {[%clk 0:01:02.7]} 29. Qa2 {[%clk 0:00:48.9]} 29...
h4 {[%clk 0:01:01.3]} 30. a5 {[%clk 0:00:44.6]} 30... hxg3 {[%clk 0:01:00.4]}
31. hxg3 {[%clk 0:00:39.3]} 31... Qf7 {[%clk 0:00:50.6]} 32. axb6 {[%clk
0:00:32]} 32... axb6 {[%clk 0:00:50.8]} 33. Qa7 {[%clk 0:00:25]} 33... d5 {[%clk
0:00:33.2]} 34. cxd5 {[%clk 0:00:19.9]} 34... Bxd5 {[%clk 0:00:32.6]} 35. Qxf7
{[%clk 0:00:19.4]} 35... Bxf7 {[%clk 0:00:32.1]} 36. Nc6 {[%clk 0:00:19.9]}
36... Bf6 {[%clk 0:00:29.3]} 37. Rd7 {[%clk 0:00:19.8]} 37... Kg7 {[%clk
0:00:27.5]} 38. Ne7 {[%clk 0:00:19.6]} 38... Bxe7 {[%clk 0:00:24.7]} 39. Rxe7
{[%clk 0:00:19.8]} 39... R8c7 {[%clk 0:00:20.6]} 40. Rdd7 {[%clk 0:00:19.7]}
40... Rxd7 {[%clk 0:00:19.4]} 41. Rxd7 {[%clk 0:00:20.6]} 41... Rd5 {[%clk
0:00:18.6]} 42. Rb7 {[%clk 0:00:20.1]} 42... Rd6 {[%clk 0:00:18.9]} 43. Kg2
{[%clk 0:00:20.1]} 43... Kf6 {[%clk 0:00:19.1]} 44. Rc7 {[%clk 0:00:19.9]} 44...
Be6 {[%clk 0:00:19]} 45. Rc6 {[%clk 0:00:20]} 45... Rxc6 {[%clk 0:00:18.5]} 46.
bxc6 {[%clk 0:00:20.9]} 46... Ke5 {[%clk 0:00:18.7]} 47. Ba6 {[%clk 0:00:20.4]}
47... Kd6 {[%clk 0:00:18.9]} 48. Bb5 {[%clk 0:00:20.8]} 48... Kc5 {[%clk
0:00:18.2]} 49. Ba4 {[%clk 0:00:21.2]} 49... b5 {[%clk 0:00:18.4]} 50. Bc2
{[%clk 0:00:21]} 50... Kxc6 {[%clk 0:00:18.7]} 51. g4 {[%clk 0:00:21.7]} 51...
fxg4 {[%clk 0:00:16.9]} 52. Kg3 {[%clk 0:00:20.1]} 52... Bf5 {[%clk 0:00:17.1]}
53. Kf4 {[%clk 0:00:20.4]} 53... Kc5 {[%clk 0:00:17.6]} 54. Ke5 {[%clk
0:00:20.8]} 54... Kc4 {[%clk 0:00:18]} 55. Bb1 {[%clk 0:00:20.2]} 55... b4
{[%clk 0:00:17.7]} 56. Kf4 {[%clk 0:00:18.8]} 56... Kc3 {[%clk 0:00:17.2]} 57.
Ba2 {[%clk 0:00:18]} 57... b3 {[%clk 0:00:17.2]} 58. Bxb3 {[%clk 0:00:18.5]}
58... Kxb3 {[%clk 0:00:17.4]} 59. Kg3 {[%clk 0:00:18.1]} 59... Kc3 {[%clk
0:00:17.7]} 60. Kf4 {[%clk 0:00:18.6]} 60... Kd3 {[%clk 0:00:18]} 61. Kg3 {[%clk
0:00:18.5]} 61... Ke2 {[%clk 0:00:18]} 62. Kg2 {[%clk 0:00:19.1]} 62... Bd7
{[%clk 0:00:17.1]} 63. Kg3 {[%clk 0:00:19.6]} 63... Kf1 {[%clk 0:00:16.9]} 64.
Kf4 {[%clk 0:00:17.8]} 64... Bf5 {[%clk 0:00:17.2]} 65. Kg3 {[%clk 0:00:17.9]}
65... Kg1 {[%clk 0:00:17.5]} 66. Kf4 {[%clk 0:00:17.2]} 66... Kxf2 {[%clk
0:00:17.2]} 0-1